bitfinex-derivatives/quotes_BNBF0:USTF0_20250413
["timestamp","ask_amount","ask_price","bid_price","bid_amount"]
[1744584719450,0.58661793,583.31,582.65,1.269]
[1744584719645,0.58661793,583.3,582.65,1.269]
[1744584719848,0.216,583.5,582.65,1.269]
[1744584719849,0.58661793,583.29,582.65,1.269]
[1744584720051,0.58661793,583.28,582.65,1.269]
[1744584720246,0.58661793,583.27,582.65,1.269]
[1744584720446,0.58661793,583.26,582.65,1.269]
[1744584720649,0.58661793,583.25,582.65,1.269]
[1744584720949,0.58661793,583.24,582.65,1.269]
[1744584721146,0.58661793,583.23,582.65,1.269]
[1744584721348,0.58661793,583.22,582.65,1.269]
[1744584721548,0.58661793,583.21,582.65,1.269]
[1744584721745,0.58661793,583.2,582.65,1.995]
[1744584721946,0.58661793,583.19,582.65,1.995]
[1744584722246,0.58661793,583.18,582.65,1.995]
[1744584722452,0.58661793,583.17,582.65,1.995]
[1744584722650,0.58661793,583.16,582.65,1.995]
[1744584722951,0.58661793,583.15,582.65,1.995]
[1744584723252,0.58661793,583.14,582.65,1.995]
[1744584723451,0.58661793,583.13,582.65,1.995]
[1744584723648,0.58661793,583.12,582.65,1.995]
[1744584723848,0.58661793,583.11,582.65,1.995]
[1744584724152,0.58661793,583.1,582.65,1.995]
[1744584724353,0.58661793,583.09,582.65,1.995]
[1744584724548,0.58661793,583.08,582.65,1.995]
[1744584724752,0.58661793,583.07,582.65,1.995]
[1744584724952,0.58661793,583.06,582.65,1.995]
[1744584725147,0.58661793,583.05,582.65,1.995]
[1744584725352,0.58661793,583.04,582.65,1.995]
[1744584725550,0.58661793,583.03,582.65,1.995]
[1744584725747,0.58661793,583.02,582.65,1.995]
[1744584725946,0.58661793,583.01,582.65,1.995]
[1744584726147,0.58661793,583.0,582.65,1.995]
[1744584726447,0.58661793,582.99,582.65,1.995]
[1744584726647,0.58661793,582.98,582.65,1.995]
[1744584726848,0.58661793,582.97,582.65,1.995]
[1744584727052,0.58661793,582.96,582.65,1.995]
[1744584727252,0.58661793,582.95,582.65,1.995]
[1744584727454,0.58661793,582.94,582.65,1.995]
[1744584727649,0.58661793,582.93,582.65,1.995]
[1744584727849,0.58661793,582.92,582.65,1.995]
[1744584728153,0.58659577,582.91,582.65,1.995]
[1744584728349,0.216,583.5,582.65,1.995]
[1744584728651,0.90020679,583.49,582.65,1.995]
[1744584728850,0.90020679,583.48,582.65,1.995]
[1744584729150,0.90020679,583.47,582.65,1.995]
[1744584729351,0.90020679,583.46,582.65,1.995]
[1744584729553,0.90020679,583.45,582.65,1.995]
[1744584729752,0.216,583.5,582.65,1.995]
[1744584729753,0.90020679,583.44,582.65,1.995]
[1744584729955,0.90020679,583.43,582.65,1.995]
[1744584730153,0.90020679,583.42,582.65,1.995]
[1744584730350,0.58662941,583.41,582.65,1.995]
[1744584730552,0.9002636,583.4,582.65,1.995]
[1744584730755,0.9002636,583.39,582.65,1.995]
[1744584730958,0.9002636,583.38,582.65,1.995]
[1744584731155,0.9002636,583.37,582.65,1.995]
[1744584731352,0.9002636,583.36,582.65,1.995]
[1744584731655,0.58662941,583.35,582.65,1.995]
[1744584731852,0.58662941,583.34,582.65,1.995]
[1744584732055,0.58662941,583.33,582.65,1.995]
[1744584732255,0.58662941,583.32,582.65,1.995]
[1744584732452,0.58662941,583.31,582.65,1.995]
[1744584732653,0.58662941,583.3,582.65,1.995]
[1744584732852,0.58662941,583.29,582.65,1.995]
[1744584733057,0.58662941,583.28,582.65,1.995]
[1744584733251,0.58662941,583.27,582.65,1.995]
[1744584733456,0.58662941,583.26,582.65,1.995]
[1744584733657,0.58662941,583.25,582.65,1.995]
[1744584733958,0.58662941,583.24,582.65,1.995]
[1744584734157,0.58662941,583.23,582.65,1.995]
[1744584734358,0.58662941,583.22,582.65,1.995]
[1744584734558,0.34272397,583.56,582.65,1.995]
[1744584734559,0.58662941,583.21,582.65,1.995]
[1744584734751,0.58662941,583.2,582.65,1.995]
[1744584734956,0.58662941,583.19,582.65,1.995]
[1744584735157,0.58662941,583.18,582.65,1.995]
[1744584735353,0.58662941,583.17,582.65,1.995]
[1744584735558,0.58662941,583.16,582.65,1.995]
[1744584735754,0.58664801,583.15,582.65,1.995]
[1744584735957,0.58664801,583.14,582.65,1.995]
[1744584736158,0.58664801,583.13,582.65,1.995]
[1744584736459,0.58664801,583.12,582.65,1.995]
[1744584736660,0.58664801,583.11,582.65,1.995]
[1744584736959,0.58664801,583.1,582.65,1.995]
[1744584737261,0.58664801,583.09,582.65,1.995]
[1744584737459,0.58664801,583.08,582.65,1.995]
[1744584737659,0.58664801,583.07,582.65,1.995]
[1744584737861,0.58664801,583.06,582.65,1.995]
[1744584738058,0.58664801,583.05,582.65,1.995]
[1744584738255,0.58664801,583.04,582.65,1.995]
[1744584738455,0.58664801,583.03,582.65,1.995]
[1744584738759,0.58664801,583.02,582.64,0.561]
[1744584738960,0.58664801,583.01,582.64,0.561]
[1744584739156,0.58664801,583.0,582.64,0.561]
[1744584739360,0.58664801,582.99,582.64,0.561]
[1744584739561,0.58664801,582.98,582.64,0.561]
[1744584739763,0.58664801,582.97,582.64,0.561]
[1744584739962,0.58664801,582.96,582.64,0.561]
[1744584740162,0.58664801,582.95,582.64,0.561]
[1744584740458,0.58664801,582.94,582.64,0.561]
[1744584740661,0.58664801,582.93,582.64,0.561]
[1744584740861,0.58664801,582.92,582.64,0.561]
[1744584741058,0.58635101,582.91,582.64,0.561]
[1744584741262,0.58635101,582.9,582.64,0.561]
[1744584741463,0.58635289,582.89,582.64,0.561]
[1744584741762,0.216,583.21,582.64,0.561]
[1744584741962,0.5863508,583.2,582.64,0.561]
[1744584742162,0.5863508,583.19,582.64,0.561]
[1744584742362,0.5863508,583.18,582.64,0.561]
[1744584742563,0.5863508,583.17,582.64,0.561]
[1744584742764,0.5863508,583.16,582.65,1.058]
[1744584742966,0.5863508,583.15,582.65,1.058]
[1744584743263,0.5863508,583.14,582.65,1.058]
[1744584743465,0.5863508,583.13,582.65,1.058]
[1744584743666,0.5863508,583.12,582.65,1.058]
[1744584743860,0.5863508,583.11,582.65,1.058]
[1744584744065,0.5863508,583.1,582.65,1.058]
[1744584744362,0.5863508,583.09,582.65,1.058]
[1744584744564,0.58604347,583.08,582.65,1.058]
[1744584744766,0.58604347,583.07,582.65,1.058]
[1744584744966,0.58604347,583.06,582.65,1.058]
[1744584745164,0.58604347,583.05,582.65,1.058]
[1744584745363,0.58604347,583.04,582.65,1.058]
[1744584745560,0.58604347,583.03,582.65,1.058]
[1744584745764,0.58604347,583.02,582.65,1.058]
[1744584745964,0.216,583.21,582.65,1.058]
[1744584745965,0.58604347,583.01,582.65,1.058]
[1744584746166,0.58604347,583.0,582.65,1.058]
[1744584746362,0.58604347,582.99,582.65,1.058]
[1744584746560,0.58604347,582.98,582.65,1.058]
[1744584746760,0.58604347,582.97,582.65,1.058]
[1744584746961,0.58604347,582.96,582.65,1.058]
[1744584747165,0.58604347,582.95,582.65,1.058]
[1744584747468,0.58604347,582.94,582.65,1.058]
[1744584747663,0.58604347,582.93,582.65,1.058]
[1744584747866,0.58604347,582.92,582.65,1.058]
[1744584748062,0.58604347,582.91,582.65,1.058]
[1744584748263,0.58604347,582.9,582.65,1.058]
[1744584748469,0.58604347,582.89,582.65,1.058]
[1744584748767,0.216,583.21,582.65,1.058]
[1744584748968,0.58615854,583.2,582.65,1.058]
[1744584749169,0.58615854,583.19,582.65,1.058]
[1744584749363,0.216,583.21,582.65,1.058]
[1744584749364,0.58615854,583.18,582.65,1.058]
[1744584749667,0.58615854,583.17,582.65,1.058]
[1744584749868,0.58619793,583.16,582.65,1.491]
[1744584750065,0.58619793,583.15,582.65,1.491]
[1744584750268,0.58619793,583.14,582.65,1.491]
[1744584750469,0.58619793,583.13,582.65,1.491]
[1744584750671,0.58619793,583.12,582.65,1.491]
[1744584750965,0.58619793,583.11,582.65,1.491]
[1744584751169,0.58619793,583.1,582.65,1.491]
[1744584751469,0.58619793,583.09,582.65,1.981]
[1744584751667,0.58619793,583.08,582.65,1.981]
[1744584751868,0.58619793,583.07,582.65,1.981]
[1744584752069,0.58619793,583.06,582.65,1.981]
[1744584752269,0.58619793,583.05,582.65,1.981]
[1744584752470,0.58619793,583.04,582.65,1.981]
[1744584752670,0.58619793,583.03,582.65,1.981]
[1744584752869,0.58619793,583.02,582.65,1.981]
[1744584753065,0.58619793,583.01,582.65,1.981]
[1744584753270,0.58619793,583.0,582.65,1.981]
[1744584753469,0.58619793,582.99,582.65,1.981]
[1744584753664,0.58619793,582.98,582.65,1.981]
[1744584753868,0.58619793,582.97,582.65,1.981]
[1744584754065,0.58619793,582.96,582.65,1.981]
[1744584754265,0.58619793,582.95,582.65,1.981]
[1744584754569,0.58619793,582.94,582.65,1.981]
[1744584754769,0.58627137,582.93,582.65,1.394]
[1744584754971,0.58627137,582.92,582.65,1.394]
[1744584755173,0.58627137,582.91,582.65,1.394]
[1744584755471,0.58627137,582.9,582.65,1.394]
[1744584755669,0.58627137,582.89,582.65,1.394]
[1744584755870,0.58627137,582.88,582.65,1.394]
[1744584756072,0.58627137,582.87,582.65,1.394]
[1744584756273,0.58627137,582.86,582.65,1.394]
[1744584756473,0.58627137,582.85,582.65,1.394]
[1744584756674,0.58627137,582.84,582.65,1.394]
[1744584756973,0.58627137,582.83,582.65,1.394]
[1744584757171,0.58640433,582.82,582.65,1.394]
[1744584757368,0.216,583.21,582.65,1.394]
[1744584757571,0.58639014,583.2,582.65,1.394]
[1744584757873,0.58639014,583.19,582.65,1.394]
[1744584758075,0.58639014,583.18,582.65,1.394]
[1744584758370,0.58639014,583.17,582.65,1.394]
[1744584758575,0.58639014,583.16,582.65,1.929]
[1744584758776,0.58639014,583.15,582.65,1.929]
[1744584759075,0.58639014,583.14,582.65,1.929]
[1744584759276,0.58639014,583.13,582.65,1.929]
[1744584759575,0.58639014,583.12,582.65,1.929]
[1744584759775,0.58639014,583.11,582.65,1.929]
[1744584759970,0.58639014,583.1,582.65,1.929]
[1744584760176,0.58639014,583.09,582.65,2.405]
[1744584760375,0.58639014,583.08,582.65,2.958]
[1744584760576,0.58639014,583.07,582.65,2.958]
[1744584760776,0.58639014,583.06,582.65,2.958]
[1744584760978,0.58639014,583.05,582.65,2.958]
[1744584761177,0.58639014,583.04,582.65,2.958]
[1744584761373,0.58639014,583.03,582.65,2.958]
[1744584761576,0.58639014,583.02,582.65,2.958]
[1744584761877,0.58639014,583.01,582.65,2.958]
[1744584762077,0.58639014,583.0,582.65,2.958]
[1744584762277,0.58639014,582.99,582.65,2.958]
[1744584762483,0.58709857,582.98,582.65,2.958]
[1744584762678,0.58709857,582.97,582.65,2.958]
[1744584762876,0.58709857,582.96,582.65,2.958]
[1744584763073,0.58709857,582.95,582.65,2.958]
[1744584763275,0.58709857,582.94,582.65,2.958]
[1744584763475,0.58709857,582.93,582.65,2.958]
[1744584763672,0.58709857,582.92,582.65,2.958]
[1744584763874,0.216,583.21,582.65,2.958]
[1744584763875,0.58709857,582.91,582.65,2.958]
[1744584764078,0.58709857,582.9,582.65,2.958]
[1744584764277,0.58743679,582.89,582.65,2.958]
[1744584764477,0.58743679,582.88,582.65,2.958]
[1744584764676,0.58743679,582.87,582.65,2.958]
[1744584764878,0.58743679,582.86,582.65,2.958]
[1744584765178,0.58743679,582.85,582.65,2.958]
[1744584765373,0.58743679,582.84,582.65,2.958]
[1744584765570,0.58743679,582.83,582.65,2.958]
[1744584765777,0.58743679,582.82,582.65,2.958]
[1744584765970,0.34272397,583.56,582.65,2.958]
[1744584766175,0.90121033,583.55,582.65,2.958]
[1744584766474,1.24394604,583.54,582.65,2.958]
[1744584766671,0.90121033,583.53,582.65,2.958]
[1744584766977,0.90121033,583.52,582.65,2.958]
[1744584767179,0.90121033,583.51,582.65,2.958]
[1744584767477,0.90121033,583.5,582.65,2.958]
[1744584767676,0.58770842,583.49,582.65,2.958]
[1744584767876,0.90121033,583.48,582.65,2.958]
[1744584768078,0.90125927,583.47,582.65,2.958]
[1744584768274,0.90125927,583.46,582.65,2.958]
[1744584768476,0.90125927,583.45,582.65,2.958]
[1744584768777,0.90125927,583.44,582.65,2.958]
[1744584768972,0.90125927,583.43,582.65,2.958]
[1744584769177,0.90125927,583.42,582.65,2.958]
[1744584769478,0.90125927,583.41,582.65,2.958]
[1744584769680,0.90125927,583.4,582.65,2.958]
[1744584769877,0.90125927,583.39,582.65,2.958]
[1744584770077,0.58770842,583.38,582.65,2.958]
[1744584770273,0.58770842,583.37,582.65,2.958]
[1744584770478,0.58770842,583.36,582.65,2.958]
[1744584770676,0.58770842,583.35,582.65,2.958]
[1744584770878,0.58770842,583.34,582.65,2.958]
[1744584771073,0.58770842,583.33,582.65,2.958]
[1744584771278,0.58820142,583.32,582.65,2.958]
[1744584771479,0.58820142,583.31,582.65,2.958]
[1744584771779,0.58820142,583.3,582.65,2.958]
[1744584771976,0.58820142,583.29,582.65,2.958]
[1744584772181,0.58820142,583.28,582.65,2.958]
[1744584772479,0.58820142,583.27,582.65,2.958]
[1744584772676,0.58820142,583.26,582.65,2.958]
[1744584772877,0.58820142,583.25,582.65,2.958]
[1744584773076,0.58820142,583.24,582.65,2.958]
[1744584773380,0.58820142,583.23,582.65,2.958]
[1744584773577,0.58820142,583.22,582.65,2.958]
[1744584773780,0.58820142,583.21,582.65,2.958]
[1744584773980,0.58820142,583.2,582.65,2.958]
[1744584774179,0.58820142,583.19,582.65,2.958]
[1744584774378,0.58820142,583.18,582.65,2.958]
[1744584774582,0.58820142,583.17,582.65,2.958]
[1744584774779,0.58820142,583.16,582.65,2.958]
[1744584774982,0.58820142,583.15,582.65,2.958]
[1744584775183,0.58820142,583.14,582.65,2.958]
[1744584775380,0.58820142,583.13,582.65,2.958]
[1744584775578,0.58820142,583.12,582.65,2.958]
[1744584775778,0.58820142,583.11,582.65,2.958]
[1744584776082,0.58820142,583.1,582.65,2.958]
[1744584776282,0.58820142,583.09,582.65,2.958]
[1744584776483,0.58820142,583.08,582.65,2.958]
[1744584776681,0.58820142,583.07,582.65,2.958]
[1744584776984,0.58820142,583.06,582.65,2.958]
[1744584777179,0.58820142,583.05,582.65,2.958]
[1744584777383,0.58820142,583.04,582.65,2.958]
[1744584777580,0.58820142,583.03,582.65,2.958]
[1744584777782,0.58804416,583.02,582.65,2.958]
[1744584778079,0.58804416,583.01,582.65,1.458]
[1744584778280,0.58804416,583.0,582.65,1.458]
[1744584778483,0.58796322,582.99,582.65,1.458]
[1744584778680,0.58796322,582.98,582.65,1.458]
[1744584778880,0.58796322,582.97,582.65,1.458]
[1744584779085,0.58796322,582.96,582.65,1.458]
[1744584779385,0.58796322,582.95,582.65,1.458]
[1744584779581,0.58796322,582.94,582.65,1.458]
[1744584779786,0.58796322,582.93,582.65,1.458]
[1744584779986,0.58796322,582.92,582.65,1.458]
[1744584780184,0.58796322,582.91,582.65,1.458]
[1744584780384,0.58796322,582.9,582.65,1.458]
[1744584780587,0.216,583.51,582.65,0.923]
[1744584780588,0.58796322,582.89,582.65,0.923]
[1744584780785,0.58796322,582.88,582.65,0.923]
[1744584780988,0.58796322,582.87,582.65,0.923]
[1744584781190,0.58796322,582.86,582.65,0.923]
[1744584781484,0.216,583.51,582.65,0.923]
[1744584781485,0.58796322,582.85,582.65,0.923]
[1744584781689,0.58797623,582.84,582.65,0.923]
[1744584781890,0.58797623,582.83,582.65,0.923]
[1744584782087,0.58797623,582.82,582.65,0.923]
[1744584782285,0.58797623,582.81,582.65,0.923]
[1744584782488,0.58797623,582.8,582.65,0.923]
[1744584782689,0.216,583.51,582.65,0.923]
[1744584782989,0.58791824,583.5,582.65,0.923]
[1744584783191,0.90129534,583.49,582.65,1.361]
[1744584783385,0.90129534,583.48,582.65,1.361]
[1744584783585,0.90129534,583.47,582.65,1.361]
[1744584783788,0.90129534,583.46,582.65,1.361]
[1744584783987,0.90129534,583.45,582.65,1.361]
[1744584784190,0.90129534,583.44,582.65,1.361]
[1744584784486,0.58791824,583.43,582.65,1.361]
[1744584784691,0.216,583.51,582.65,1.361]
[1744584784692,0.58791824,583.42,582.65,1.361]
[1744584784887,0.58791824,583.41,582.65,1.361]
[1744584785091,0.58791824,583.4,582.65,1.361]
[1744584785293,0.58791824,583.39,582.65,1.361]
[1744584785492,0.58791824,583.38,582.65,1.361]
[1744584785793,0.58791824,583.37,582.65,1.361]
[1744584785993,0.58791824,583.36,582.65,1.361]
[1744584786194,0.58791824,583.35,582.65,1.361]
[1744584786393,0.58791824,583.34,582.65,1.361]
[1744584786595,0.58791824,583.33,582.65,1.361]
[1744584786795,0.58791824,583.32,582.65,1.361]
[1744584786999,0.58791824,583.31,582.65,1.361]
[1744584787296,0.58791824,583.3,582.65,1.361]
[1744584787490,0.58791824,583.29,582.65,1.361]
[1744584787694,0.58791824,583.28,582.65,1.361]
[1744584787896,0.58791824,583.27,582.65,1.361]
[1744584788094,0.58791824,583.26,582.65,1.361]
[1744584788292,0.58791824,583.25,582.65,1.361]
[1744584788497,0.58791824,583.24,582.65,1.361]
[1744584788697,0.58791824,583.23,582.65,1.361]
[1744584788896,0.58791824,583.22,582.65,1.361]
[1744584789092,0.58791824,583.21,582.65,1.361]
[1744584789296,0.58791824,583.2,582.65,1.361]
[1744584789496,0.58791824,583.19,582.65,1.361]
[1744584789694,0.58791824,583.18,582.65,1.361]
[1744584789899,0.58791824,583.17,582.65,1.361]
[1744584790098,0.58791824,583.16,582.65,1.361]
[1744584790398,0.58791824,583.15,582.65,1.361]
[1744584790598,0.58764452,583.14,582.65,1.361]
[1744584790894,0.58764452,583.13,582.65,1.361]
[1744584791094,0.58764452,583.12,582.65,1.361]
[1744584791300,0.58764452,583.11,582.65,1.361]
[1744584791498,0.58764452,583.1,582.65,1.361]
[1744584791698,0.58764452,583.09,582.65,1.361]
[1744584791898,0.58764452,583.08,582.65,1.361]
[1744584792098,0.58764452,583.07,582.65,1.361]
[1744584792299,0.34273571,583.54,582.65,1.361]
[1744584792300,0.58764452,583.06,582.65,1.361]
[1744584792497,0.58764452,583.05,582.65,1.361]
[1744584792697,0.58764452,583.04,582.65,1.361]
[1744584792897,0.58764452,583.03,582.65,1.361]
[1744584793097,0.58764452,583.02,582.65,0.438]
[1744584793304,0.58764452,583.01,582.65,0.438]
[1744584793498,0.216,583.04,582.65,0.438]
[1744584793499,0.58764452,583.0,582.65,0.438]
[1744584793698,0.58764452,582.99,582.65,0.438]
[1744584793899,0.58764452,582.98,582.65,0.438]
[1744584794101,0.587521,582.97,582.65,0.438]
[1744584794300,0.587521,582.96,582.65,0.438]
[1744584794500,0.587521,582.95,582.65,0.438]
[1744584794699,0.587521,582.94,582.65,0.438]
[1744584795000,0.587521,582.93,582.65,0.438]
[1744584795200,0.587521,582.92,582.65,0.438]
[1744584795402,0.587521,582.91,582.65,0.438]
[1744584795601,0.587521,582.9,582.65,0.438]
[1744584795795,0.587521,582.89,582.65,0.438]
[1744584796101,0.587521,582.88,582.65,0.438]
[1744584796401,0.587521,582.87,582.65,0.438]
[1744584796601,0.587521,582.86,582.65,0.438]
[1744584796798,0.216,583.04,582.65,0.438]
[1744584796999,0.58741643,583.03,582.65,0.438]
[1744584797196,0.58741643,583.02,582.65,0.438]
[1744584797498,0.58741643,583.01,582.65,0.438]
[1744584797798,0.58736685,583.0,582.65,0.438]
[1744584797998,0.58736685,582.99,582.65,0.438]
[1744584798198,0.58736685,582.98,582.65,0.438]
[1744584798397,0.58736685,582.97,582.65,0.438]
[1744584798597,0.58736685,582.96,582.65,0.438]
[1744584798794,0.58736685,582.95,582.65,0.438]
[1744584798995,0.58736685,582.94,582.65,0.438]
[1744584799198,0.58736685,582.93,582.65,0.438]
[1744584799398,0.58721603,582.92,582.65,0.438]
[1744584799706,0.58721603,582.91,582.65,0.438]
[1744584799901,0.58721603,582.9,582.65,0.438]
[1744584800102,0.58721603,582.89,582.65,0.438]
[1744584800301,0.58721603,582.88,582.65,0.438]
[1744584800499,0.58721603,582.87,582.65,0.438]
[1744584800697,0.58721603,582.86,582.65,0.438]
[1744584800896,0.58721603,582.85,582.65,0.438]
[1744584801102,0.58721766,582.84,582.65,0.438]
[1744584801301,0.216,583.04,582.65,0.438]
[1744584801501,0.58721226,583.03,582.65,0.438]
[1744584801701,0.58721226,583.02,582.65,0.438]
[1744584801901,0.58721226,583.01,582.65,0.438]
[1744584802098,0.58721226,583.0,582.65,0.438]
[1744584802301,0.58721226,582.99,582.65,0.438]
[1744584802498,0.58721226,582.98,582.65,0.438]
[1744584802701,0.58721226,582.97,582.65,0.438]
[1744584802903,0.58721226,582.96,582.65,0.438]
[1744584803100,0.58721226,582.95,582.65,0.438]
[1744584803405,0.58721226,582.94,582.65,0.438]
[1744584803704,0.58721226,582.93,582.65,0.438]
[1744584803900,0.58721226,582.92,582.65,0.438]
[1744584804100,0.58721226,582.91,582.65,0.438]
[1744584804306,0.58721226,582.9,582.65,0.438]
[1744584804499,0.58721226,582.89,582.65,0.438]
[1744584804703,0.58721226,582.88,582.65,0.438]
[1744584804898,0.58721226,582.87,582.65,0.438]
[1744584805101,0.58721226,582.86,582.65,0.438]
[1744584805399,0.58721226,582.85,582.65,0.438]
[1744584805603,0.58721226,582.84,582.65,0.438]
[1744584805799,0.216,583.04,582.65,0.438]
[1744584806002,0.58691329,583.03,582.65,0.438]
[1744584806200,0.58691329,583.02,582.65,0.438]
[1744584806403,0.58691329,583.01,582.65,0.438]
[1744584806705,0.58691329,583.0,582.65,0.438]
[1744584807005,0.58691329,582.99,582.65,0.438]
[1744584807211,0.58691329,582.98,582.65,0.438]
[1744584807412,0.58691329,582.97,582.65,0.438]
[1744584807606,0.58691329,582.96,582.65,0.438]
[1744584807807,0.58691329,582.95,582.65,0.438]
[1744584808012,0.58691329,582.94,582.65,0.438]
[1744584808312,0.58691329,582.93,582.65,0.438]
[1744584808509,0.58691329,582.92,582.65,0.438]
[1744584808708,0.58691329,582.91,582.65,0.438]
[1744584808911,0.58691329,582.9,582.65,0.438]
[1744584809107,0.58691329,582.89,582.65,0.438]
[1744584809310,0.58691329,582.88,582.65,0.438]
[1744584809511,0.58691329,582.87,582.65,0.438]
[1744584809811,0.58691329,582.86,582.65,0.438]
[1744584810011,0.58691329,582.85,582.65,0.438]
[1744584810212,0.58691329,582.84,582.65,0.438]
[1744584810412,0.216,583.04,582.65,0.438]
[1744584810712,0.58679044,583.03,582.65,0.438]
[1744584810909,0.58679044,583.02,582.65,0.438]
[1744584811108,0.58679044,583.01,582.65,0.438]
[1744584811313,0.58679044,583.0,582.65,0.438]
[1744584811612,0.58679044,582.99,582.65,0.438]
[1744584811807,0.216,583.04,582.65,0.438]
[1744584811808,0.58679044,582.98,582.65,0.438]
[1744584812010,0.58679044,582.97,582.65,0.438]
[1744584812205,0.216,583.04,582.65,0.438]
[1744584812206,0.58679044,582.96,582.65,0.438]
[1744584812407,0.58679079,582.95,582.65,0.438]
[1744584812610,0.58679079,582.94,582.65,0.438]
[1744584812811,0.58679079,582.93,582.65,0.438]
[1744584813108,0.58679079,582.92,582.65,0.438]
[1744584813313,0.58679079,582.91,582.62,0.594]
[1744584813614,0.58679079,582.9,582.62,0.594]
[1744584813814,0.58679079,582.89,582.62,0.594]
[1744584814013,0.58679079,582.88,582.62,0.594]
[1744584814209,0.58679079,582.87,582.62,0.594]
[1744584814413,0.58679079,582.86,582.62,0.594]
[1744584814609,0.216,583.04,582.62,0.594]
[1744584814808,0.58679472,583.03,582.62,0.594]
[1744584815009,0.58679472,583.02,582.62,0.594]
[1744584815212,0.58679472,583.01,582.62,0.594]
[1744584815409,0.216,583.04,582.62,0.594]
[1744584815610,0.58680333,583.03,582.62,0.594]
[1744584815811,0.58680333,583.02,582.62,0.594]
[1744584816014,0.58680333,583.01,582.62,0.594]
[1744584816216,0.58680333,583.0,582.62,0.594]
[1744584816417,0.58680333,582.99,582.62,0.594]
[1744584816615,0.58680333,582.98,582.62,0.594]
[1744584816815,0.58680333,582.97,582.62,0.594]
[1744584817015,0.58680333,582.96,582.62,0.594]
[1744584817215,0.58680333,582.95,582.62,0.594]
[1744584817415,0.58680333,582.94,582.62,0.594]
[1744584817615,0.58680333,582.93,582.62,0.594]
[1744584817915,0.58680333,582.92,582.62,0.594]
[1744584818109,0.58680333,582.91,582.62,0.594]
[1744584818314,0.58680333,582.9,582.62,0.594]
[1744584818609,0.58680333,582.89,582.62,0.594]
[1744584818814,0.58680333,582.88,582.62,0.594]
[1744584819014,0.58680333,582.87,582.62,0.594]
[1744584819211,0.58669066,582.86,582.62,0.594]
[1744584819414,0.58669066,582.85,582.62,0.594]
[1744584819614,0.216,583.04,582.62,0.594]
[1744584819816,0.58669855,583.03,582.62,0.594]
[1744584820109,0.58669855,583.02,582.62,0.594]
[1744584820310,0.58669855,583.01,582.62,0.594]
[1744584820517,0.58669855,583.0,582.62,0.594]
[1744584820716,0.58669855,582.99,582.62,0.594]
[1744584820919,0.58669855,582.98,582.62,0.594]
[1744584821218,0.58669855,582.97,582.62,0.594]
[1744584821517,0.216,583.04,582.62,0.594]
[1744584821518,0.58669855,582.96,582.62,0.594]
[1744584821818,0.58669855,582.95,582.62,0.594]
[1744584822011,0.58669855,582.94,582.62,0.594]
[1744584822215,0.58669855,582.93,582.62,0.594]
[1744584822416,0.58669855,582.92,582.62,0.594]
[1744584822618,0.58693969,582.91,582.62,0.594]
[1744584822818,0.58693969,582.9,582.62,0.594]
[1744584823118,0.58693969,582.89,582.62,0.594]
[1744584823320,0.58693969,582.88,582.62,0.594]
[1744584823520,0.58693969,582.87,582.62,0.594]
[1744584823823,0.58693969,582.86,582.62,0.594]
[1744584824025,0.34273571,583.54,582.62,0.594]
[1744584824222,0.8999548,583.53,582.62,0.594]